Cogmind - Beta 13 @@@ ROGUE MODE // 2024.07.16 @ 20:35:54 Player: TryingToLearn Result: Destroyed by D-53 Grenadier with Mini Grenade Launcher Performance ------------- Evolutions (1) 500 Regions Visited (4) 800 Robots Destroyed (53) 265 Value Destroyed (1303) 1303 Prototype IDs (1) 20 Alien Tech Used (0) 0 Bonus (92) 92 TOTAL SCORE: 2980 Bonus ------- High Alert Combat Kills 92 Cogmind --------- Core Integrity 0/400 Matter 199/300 Energy 73/125 System Corruption 4% Temperature Cool (0) Movement Rolling (95) Ox1 Location -9/Mines Parts ------- > --- POWER (1) -------- Light Ion Engine > --- PROPULSION (2) --- Wheel Flight Unit > --- UTILITY (4) ------ Large Storage Unit Weight Redist. System Advanced Visual Processing Unit > --- WEAPON (2) ------- Improved Assault Rifle > --- INVENTORY (15) --- Wheel Wheel Compact Wheel Flight Unit Flight Unit Heat Sink High-capacity Matter Pod (200) Hacking Suite Heavy Assault Rifle Heavy Mace Peak State ------------ > --- POWER ------------ Improved Ion Engine > --- PROPULSION ------- Wheel Compact Wheel > --- UTILITY ---------- Large Storage Unit Weight Redist. System Light Armor Plating Hardened Light Armor Plating > --- WEAPON ----------- Autogun Heavy Mace > --- INVENTORY -------- Ion Engine Ion Engine Wheel Wheel Wheel Wheel Wheel Compact Wheel High-capacity Matter Pod Weight Redist. System Advanced Visual Processing Unit Signal Interpreter Assault Rifle Heavy Assault Rifle Rocket Launcher [Rating: 17] Favorites ----------- Power Improved Ion Engine Engine Improved Ion Engine Propulsion Wheel Treads Light Treads Wheel Wheel Flight Unit Flight Unit Utility Light Armor Plating Device Weight Redist. System Storage Large Storage Unit Processor Advanced Visual Processing Unit Protection Light Armor Plating Weapon Heavy Assault Rifle Energy Gun Small Laser Ballistic Gun Heavy Assault Rifle Launcher Rocket Launcher Impact Weapon Heavy Mace Build | -11 -10 -10 -9 -9 ------- Run | Yrd Mat Min Mat Min Slots Evolved 2 | . . . 2 . Power . | . . . . . Propulsion . | . . . . . Utility 2 | . . . 2 . Weapon . | . . . . . Parts Attached 48 | 6 6 1 24 11 Power 7 | 1 1 1 3 1 Engine 7 | 1 1 1 3 1 Core . | . . . . . Reactor . | . . . . . Propulsion 11 | 2 2 . 3 4 Treads 2 | 2 . . . . Leg . | . . . . . Wheel 7 | . 2 . 3 2 Hover . | . . . . . Flight 2 | . . . . 2 Utility 14 | 1 2 . 8 3 Device 2 | . . . 1 1 Storage 4 | 1 1 . 2 . Processor 1 | . . . . 1 Hackware . | . . . . . Protection 7 | . 1 . 5 1 Artifact . | . . . . . Weapon 16 | 2 1 . 10 3 Energy Gun 1 | 1 . . . . Energy Cannon . | . . . . . Ballistic Gun 11 | 1 1 . 8 1 Ballistic Cannon . | . . . . . Launcher 3 | . . . 1 2 Special Weapon . | . . . . . Impact Weapon 1 | . . . 1 . Slashing Weapon . | . . . . . Piercing Weapon . | . . . . . Special Melee Weapon . | . . . . . Unidentified Prototypes 1 | . . . 1 . Parts Lost 19 | . . 3 8 8 Power 3 | . . 1 1 1 Propulsion 7 | . . 1 3 3 Utility 6 | . . 1 2 3 Weapon 3 | . . . 2 1 Highest Loss Streak 6 | . . 2 3 6 To Critical Strikes . | . . . . . Average Slot Usage (%) 91 | . 98 80 92 79 Engine 11 | . 14 12 10 10 Wheel 17 | . 25 14 16 9 Device 8 | . . . 10 11 Storage 12 | . 14 14 12 11 Protection 17 | . 12 10 19 7 Ballistic Gun 21 | . 24 28 20 19 Naked Turns . | . . . . . Heaviest Build 42 | 11 22 22 42 37 Greatest Support 40 | 40 40 10 32 16 Greatest Overweight (x) 4 | . 1 2 4 3 Average Overweight (x) 1 | . . 1 1 1 Largest Inventory Capacity 15 | 8 10 10 15 15 Average Capacity 13 | 6 8 10 14 15 Most Carried 15 | 5 10 10 15 15 Average Carried 12 | 3 8 10 13 14 Final Capacity 15 | 8 10 10 15 15 Final Carried 14 | 5 10 10 14 10 Class Distribution -------------------- 79% | Mutant 20% | Scavenger-Mutant Dominant Class ---------------- Mutant | -10/Materials Mutant | -10/Mines Mutant | -9/Materials Mutant | -9/Mines Resources | -11 -10 -10 -9 -9 ----------- Run | Yrd Mat Min Mat Min Matter Collected 1530 | 243 186 79 977 45 Remotely . | . . . . . Salvage Created 1854 | . 203 133 1444 74 Parts 127 | . 10 10 98 9 Haulers Intercepted 3 | . 1 . 2 . Recyclers Shooed 2 | . . . 2 . Parts Field Recycled . | . . . . . Retrieved Matter . | . . . . . Parts Self-Destructed . | . . . . . Prevented . | . . . . . Kills | -11 -10 -10 -9 -9 ------- Run | Yrd Mat Min Mat Min Combat Hostiles Destroyed 50 | . 5 5 28 12 Guns 38 | . 5 5 24 4 AOE 10 | . . . 2 8 Classes Destroyed 10 | . 3 . 6 1 Worker 1 | . . . 1 . Hauler 3 | . 1 . 2 . Recycler 3 | . . . 3 . Mechanic 1 | . . . 1 . Operator 1 | . . . 1 . Watcher 2 | . . . 2 . Swarmer 16 | . 2 3 7 4 Grunt 18 | . 3 2 13 . Sentry 8 | . . . 8 . Assembled 8 | . . . . 8 Best Kill Streak 8 | . 3 3 5 8 Combat Bots Only 8 | . 3 3 3 8 Max Kills in Single Turn 3 | . 1 2 3 3 Gunslinging 1 | . . 1 . 1 Exploded 3 | . . . 1 3 Melee . | . . . . . Uniques/NPCs Destroyed . | . . . . . Combat | -11 -10 -10 -9 -9 -------- Run | Yrd Mat Min Mat Min Hostile Shots Fired 256 | . 24 33 135 64 Missed 61 | . 7 8 31 15 Damage Taken 2513 | . 215 266 1305 727 Core 440 | . 35 . 220 185 Absorbed by Shields . | . . . . . Regen/Repaired (Parts) 60 | . . . 60 . Core Remaining (%) 93 | 100 . 86 . . Volleys Fired 124 | . 18 14 86 6 Largest 2 | . 2 2 2 2 Hottest 56 | . 40 40 56 56 Shots Fired 246 | . 36 28 170 12 Gun 239 | . 36 28 168 7 Cannon . | . . . . . Launcher 7 | . . . 2 5 Special . | . . . . . Kinetic 239 | . 36 28 168 7 Thermal . | . . . . . Explosive 7 | . . . 2 5 Electromagnetic . | . . . . . Robot Hit Streak 11 | . 7 4 11 8 Robot Miss Streak 5 | . 2 2 5 2 Penetration Max . | . . . . . Secondary Targets 3 | . . 2 . 1 Max Gunslinging Chain 1 | . . 1 . 1 Shots Hit Robots 161 | . 27 17 111 6 Core Hits 94 | . 11 8 52 23 Critical Kills . | . . . . . Critical Parts Destroyed 3 | . . . 3 . Critical Strikes 3 | . . . 3 . Smash 3 | . . . 3 . Melee Attacks 15 | . . . 15 . Impact 15 | . . . 15 . Slashing . | . . . . . Piercing . | . . . . . Sneak Attacks 2 | . . . 2 . Combat Hostiles . | . . . . . Follow-up Attacks . | . . . . . Damage Inflicted 3485 | . 352 233 2346 554 Guns 2164 | . 346 233 1510 75 Cannons . | . . . . . Explosions 895 | . . . 416 479 Melee 420 | . . . 420 . Ramming 6 | . 6 . . . Kinetic 2164 | . 346 233 1510 75 Thermal . | . . . . . Explosive 895 | . . . 416 479 Electromagnetic . | . . . . . Impact 420 | . . . 420 . Slashing . | . . . . . Piercing . | . . . . . Highest Corruption 4 | . 1 1 . 4 Average Corruption 1 | . 1 1 . 4 Corruption Purged . | . . . . . Corruption Blocked . | . . . . . Effects 4 | . 2 2 . . Message Errors 2 | . 1 1 . . Matter Fused 1 | . 1 . . . Energy Discharges 1 | . . 1 . . Overload Shots . | . . . . . Overflow Damage 160 | . . . 155 5 Projectiles . | . . . . . Explosions 23 | . . . 18 5 Melee 137 | . . . 137 . Knockbacks . | . . . . . Impact . | . . . . . Kinetic . | . . . . . Secondary . | . . . . . Self-Inflicted Damage 29 | . 2 . 3 24 Shots 3 | . . . 1 2 Rammed 3 | . 3 . . . Targets Rammed 3 | . 3 . . . Kicked . | . . . . . Crushed . | . . . . . Highest Temperature 108 | . 12 24 108 19 Average Temperature 27 | . 5 14 31 8 Received Heat Transfer 724 | . 84 96 504 40 Siege Activations . | . . . . . Robots Corrupted . | . . . . . Combat Hostiles . | . . . . . Parts Fried 2 | . . . 2 . Impact Corruptions 4 | . . . 4 . Robots Melted . | . . . . . Combat Hostiles . | . . . . . Parts Melted . | . . . . . Heat Transferred . | . . . . . Parts Sabotaged . | . . . . . Parts Stolen . | . . . . . Parts Stripped . | . . . . . Power Chain Reactions . | . . . . . Alert | -11 -10 -10 -9 -9 ------- Run | Yrd Mat Min Mat Min Peak Influence 606 | . 187 100 606 343 Initial 235 | . . . 39 235 Average 196 | . 80 54 231 315 Maximum Alert Level 2 | . . . 2 1 Low Security (%) 63 | 100 100 100 57 . Level 1 19 | . . . 17 100 Level 2 16 | . . . 25 . Level 3 . | . . . . . Level 4 . | . . . . . Level 5 . | . . . . . High Security . | . . . . . Max Security . | . . . . . Squads Dispatched 5 | . 1 . 4 . Investigation . | . . . . . Extermination . | . . . . . Reinforcement 4 | . 1 . 3 . Assault 1 | . . . 1 . Garrison . | . . . . . Intercept . | . . . . . Searches Triggered . | . . . . . Construction Impeded . | . . . . . Haulers Reinforced . | . . . . . Active Scanning Responses . | . . . . . Cargo Convoy Interrupts . | . . . . . Stealth | -11 -10 -10 -9 -9 --------- Run | Yrd Mat Min Mat Min Distress Signals 2 | . . . 2 . Communications Jammed . | . . . . . Distress Signals . | . . . . . Times Spotted 98 | . 8 7 58 25 Peak Tracking Total 16 | . 5 3 5 16 Tactical Retreats 8 | . 2 . 5 1 Traps | -11 -10 -10 -9 -9 ------- Run | Yrd Mat Min Mat Min Traps Triggered 1 | . 1 . . . Indirectly . | . . . . . Trap Hack Attempts . | . . . . . Triggered . | . . . . . Disarmed . | . . . . . Reprogrammed . | . . . . . Reused . | . . . . . Traps Extracted . | . . . . . Installed . | . . . . . Triggered . | . . . . . Machines | -11 -10 -10 -9 -9 ---------- Run | Yrd Mat Min Mat Min Machines Disabled 2 | . . . 2 . Max in Single Turn 1 | . . . 1 . Machines Repaired . | . . . . . Machines Dismantled . | . . . . . Machines Sabotaged . | . . . . . Overloaded Fab Kills . | . . . . . Hacking | -11 -10 -10 -9 -9 --------- Run | Yrd Mat Min Mat Min Machines Accessed 6 | . 1 . 5 . Terminals 4 | . 1 . 3 . Fabricators . | . . . . . Repair Stations 1 | . . . 1 . Recycling Units . | . . . . . Scanalyzers 1 | . . . 1 . Garrison Access . | . . . . . Total Hacks 14 | . 2 . 12 . Successful 11 | . 1 . 10 . Failed 3 | . 1 . 2 . Catastrophic 1 | . . . 1 . Database Lockouts . | . . . . . Manual 6 | . 2 . 4 . Terminals 8 | . 2 . 6 . Fabricators . | . . . . . Repair Stations 2 | . . . 2 . Recycling Units . | . . . . . Scanalyzers 4 | . . . 4 . Garrison Access . | . . . . . Terminal Hacks 1 | . . . 1 . Record 1 | . . . 1 . Fabricator Hacks . | . . . . . Repair Station Hacks 2 | . . . 2 . Scan Component 1 | . . . 1 . Repair 1 | . . . 1 . Recycling Unit Hacks . | . . . . . Scanalyzer 4 | . . . 4 . Insert Component 2 | . . . 2 . Analyze 2 | . . . 2 . Garrison Access Hacks . | . . . . . Unauthorized Hacks 4 | . 1 . 3 . Terminals 4 | . 1 . 3 . Botnet 4 | . 1 . 3 . Fabricators . | . . . . . Repair Stations . | . . . . . Recycling Units . | . . . . . Scanalyzers . | . . . . . Garrison Access . | . . . . . Data Cores Recovered . | . . . . . Used . | . . . . . Hacking Detections 6 | . 1 . 5 . Full Trace Events . | . . . . . Feedback Events . | . . . . . Feedback Blocked . | . . . . . Robot Schematics Acquired . | . . . . . Robots Built . | . . . . . Authchips . | . . . . . Time . | . . . . . Total Robot Build Rating . | . . . . . Part Schematics Acquired 1 | . . . 1 . Parts Built . | . . . . . Authchips . | . . . . . Time . | . . . . . Total Part Build Rating . | . . . . . Parts Repaired 1 | . . . 1 . Time 13 | . . . 13 . Parts Recycled . | . . . . . Recycled Matter . | . . . . . Retrieved Matter . | . . . . . Retrieved Components . | . . . . . Parts Scanalyzed 2 | . . . 2 . Part Schematics Acquired 1 | . . . 1 . Parts Damaged . | . . . . . Bothacking | -11 -10 -10 -9 -9 ------------ Run | Yrd Mat Min Mat Min Used RIF Installer . | . . . . . Robots Hacked . | . . . . . Non-combat . | . . . . . Combat . | . . . . . Robot Hacks Applied . | . . . . . Relay Couplers Released . | . . . . . Fabnet Peak Effective % . | . . . . . Robots Rewired . | . . . . . Allies Hacked . | . . . . . Hacks Repelled . | . . . . . Allies | -11 -10 -10 -9 -9 -------- Run | Yrd Mat Min Mat Min Total Allies . | . . . . . Largest Group . | . . . . . Highest-Rated Group . | . . . . . Highest-Rated Ally . | . . . . . Total Orders . | . . . . . Ally Attacks . | . . . . . Total Damage . | . . . . . Kills . | . . . . . Allies Corrupted . | . . . . . Allies Melted . | . . . . . Intel | -11 -10 -10 -9 -9 ------- Run | Yrd Mat Min Mat Min Robot Analysis Total . | . . . . . Derelict Logs Recovered 1 | . . 1 . . Drone Launches . | . . . . . Drone Recoveries . | . . . . . Exploration | -11 -10 -10 -9 -9 ------------- Run | Yrd Mat Min Mat Min Turns Passed 2719 | 90 413 170 1831 215 Spaces Moved 1842 | 56 357 113 1164 152 Core 19 | 11 . . 2 6 Treads 65 | 45 20 . . . Legs . | . . . . . Wheels 1744 | . 337 113 1162 132 Hover . | . . . . . Flight 14 | . . . . 14 Fastest Speed 50 | 50 80 95 95 95 Average Speed 104 | 138 86 106 107 113 Slowest Speed 250 | 160 160 110 250 200 Overloaded Moves . | . . . . . Propulsion Burnouts . | . . . . . Robots Hopped . | . . . . . Cave-ins Triggered . | . . . . . Exploration Rate (%) 36 | 3 46 32 58 43 Regions Visited 4 Branch Regions 2 Pre-discovered Areas . | . . . . . Known Exits Taken . | . . . . . Unknown Exits Taken 4 | 1 1 1 1 . Scrap Searched . | . . . . . Spaces Dug 6 | . . . 2 4 Terrain Destroyed 66 | . . . 18 48 Melee 2 | . . . 2 . Projectile . | . . . . . AOE 64 | . . . 16 48 Terrain Rammed . | . . . . . Walls Destroyed . | . . . . . Machines Disabled . | . . . . . Actions | -11 -10 -10 -9 -9 --------- Run | Yrd Mat Min Mat Min Total 2378 | 66 429 134 1567 182 Wait 284 | . 24 7 246 7 Move 1838 | 55 356 112 1163 152 Hop . | . . . . . Pick Up 36 | 5 10 . 16 5 Fast Attach 18 | 6 4 1 7 . Attach 14 | . . . 6 8 Detach 4 | . 2 . 2 . Swap 16 | . 2 . 11 3 Drop 26 | . 10 . 15 1 Fire 124 | . 18 14 86 6 Melee 15 | . . . 15 . Ram 3 | . 3 . . . Kick . | . . . . . Crush . | . . . . . Escape Stasis . | . . . . . Rewire . | . . . . . Trap . | . . . . . Miscellaneous . | . . . . . Route ------- -11/Scrapyard -10/Materials (discovered 2 exits: *Mat / [*Min]) -10/Mines -9/Materials (discovered 3 exits: [*Mat x2] / [*Min]) -9/Mines History --------- Turn | Location | Event 8 | -11/Scrapyard | Discovered new exit (range 15) 91 | -11/Scrapyard | Entered Materials 234 | -10/Materials | Discovered new exit (range 9) 314 | -10/Materials | Build established: Mutant 377 | -10/Materials | Discovered new exit (range 14) 504 | -10/Materials | Entered Mines 583 | -10/Mines | Learned Materials security intel 625 | -10/Mines | Discovered new exit (range 12) 674 | -10/Mines | Entered Materials 674 | -9/Materials | Evolved 2 slots: Utility x2 1692 | -9/Materials | Discovered new exit (range 3) 1890 | -9/Materials | Repaired Lgt. Armor Plating 1978 | -9/Materials | Discovered new exit (range 3) 2274 | -9/Materials | First assault squad dispatched 2398 | -9/Materials | Core integrity fell below 50% 2450 | -9/Materials | Lost 3 parts (1p1u1w) 2495 | -9/Materials | Discovered new exit (range 8) 2505 | -9/Materials | Entered Mines 2519 | -9/Mines | Met a Derelict bent on vengeance 2542 | -9/Mines | Lost 3 parts (1n2u) 2676 | -9/Mines | Assembled infested the area 2697 | -9/Mines | Core integrity fell below 20% 2712 | -9/Mines | Destroyed 8 combat bots 2720 | -9/Mines | Destroyed by D-53 Grenadier with Mini Grenade Launcher Last Messages --------------- 02685_ as-60834 destroyed. 02691_ Destroyed Asb. Hover Unit. 02691_ as-28198 destroyed. 02691_ as-12741 destroyed. 02692_ Imp. Ion Engine destroyed. 02693_ Rocket Launcher destroyed. 02693_ Lgt. Armor Plating destroyed. 02700_ Wheel destroyed. 02700_ Weight Redist. System destroyed. 02700_ System corrupted by crushing effect (+3). 02700_ System corrupted by crushing effect (+1). 02700_ Knocked back. 02714_ K-01 Serf collects debris. 02716_ C-30 ARC bursts open, deploying its payload. 02716_ D-53 Grenadier unfolds itself. 02718_ K-01 Serf collects debris. 02718_ as-77882 sneak attacks. 02718_ K-01 Serf system corrupted by crushing effect. 02719_ K-01 Serf system terminally corrupted. 02719_ Flight Unit destroyed. Map ----- +----------------------------------------------------+ | | | | | | | | | | | | | | | | | ?????????????????????????????????????????????????? | | ?????????????????????????????????????????????????? | | ???????????????????????????????????????????#####?? | | ??????????????????????????????????????????## #? | | ???????????????????????????####?????????### # | | ??????????????????????????## ##????????? | | ?????????????????????????## ##????????? | | ?????????????????????????# #?????????? | | ?????????????????????????# ???????????? | | ???????????##???????????## #??####??????? | | ??????????? ##??????????# #### ##???????# | | ??????????? ##?????????# ## #????????# | | ??????????# ##????#??## a #?????????# | | ????????## #????# ?# aa #?????????# | | ??????## ?????# ## ## #????????## | | ?????## ????## #### #????????# | | ????## ##### #??## ##??????## | | ????# ??#t @ a #???# #####?## | | ????# ???# a% #???# ### | | ????# ????# #### ### ##???# | | ???## #????# #??##???# ###????## | | ??## ###### #??????## ######### ### | | ?## ## #####?## #?## | | ?# ### ###########??## # | | ## #????????????## ## | | # #?????????????######? | | # #### #???????????????????? | | ## ##??### #??????????????????? | | ?## #?????## " #??????????????????? | | ??### ##??????## "%" ##??????????????????? | | ????# ### ##????????# " #???????????????????? | | ????# ##?####?????????# #???????????????????? | | ????# ##?????????????? ##???????????????????? | | ??### ##????????????? ##????????????????????? | | ?## ##???????????? ##?????????????????????? | | ?# #???????????? ??????????????????????? | | ?# #??????????? ??????????????????????? | | ?# ##??????????? ## ?????????????????????? | | ?# #????????????# ?? ?????????????????????? | | ?# #????????????# ?? ?????????????????????? | | ?## #????????????# ??? ????????????????????? | | ?## ##????????????? ??? ????????????????????? | +----------------------------------------------------+ Best States ------------- Heat Dissipation 28 Energy Generation 12 Energy Capacity 265 Matter Stores 468 Matter Capacity 500 Sight Range 20 Terrain Scan Density 10 Additional Mass Support 6 Armor Coverage 300 Evasion (%) 44 Recoil Reduction 2 Item Schematics ----------------- Hacking Suite | -9/Materials | Scanalyzed Robot Schematics ------------------ None Fabricated ------------ Nothing Alien Tech Used ----------------- None Achievements -------------- None Challenges ------------ None Game ------ Seed ElectronWeaponsCompactor Manual? 0 Play Time 00:31:22 Cumulative 27.9 hours Start 2024.07.15 @ 18:38:24 End 2024.07.16 @ 20:35:54 Sessions 3 Manual Loads 0 Difficulty Rogue Special Mode None Game No. 22 Rogue 22 Adventurer 0 Explorer 0 Win Type - Total 0 Types 0/0/0/0/0/0/0/0/0 Lore% 18 Gallery% 34 Achievement% 25 Wizard Run 0 Options --------- Layout 0 ASCII 0 Keyboard 1 Movement Numpad Keybinds 0 Fullscreen 0 Font 16/SmallcapsGlow Map View 88x55 Zoom Use 0% Tactical HUD 1 Map Filters NONE Filters NONE Steam 1 RUN: 4827c6cb-0bd2-4780-a802-c851e5c0a383